bitfinex/quotes_ETHUSD_20240713
["timestamp","ask_amount","ask_price","bid_price","bid_amount"]
[1720896004306,2.32142756,3158.5,3158.1,0.55]
[1720896005331,0.33123917,3158.4,3158.1,0.55]
[1720896006244,0.33123917,3158.4,3158.2,2.4649]
[1720896006445,0.33123917,3158.4,3158.3,0.55]
[1720896006811,2.65266673,3158.4,3158.3,0.55]
[1720896007037,2.65266673,3158.4,3158.1,0.55]
[1720896007345,2.65216543,3158.4,3158.1,0.55]
[1720896007949,0.33123917,3158.4,3158.1,0.85149]
[1720896008316,2.32092626,3158.5,3158.1,0.85149]
[1720896010620,2.32045268,3158.5,3158.1,0.85149]
[1720896011013,2.32045064,3158.5,3158.1,0.85149]
[1720896013149,2.32026881,3158.5,3158.2,2.4649]
[1720896013322,2.32026881,3158.5,3158.3,0.55]
[1720896013821,2.32019132,3158.5,3158.3,0.55]
[1720896017240,2.3197553,3158.5,3158.3,0.55]
[1720896019368,2.65103369,3158.5,3158.3,0.55]
[1720896020621,0.33127839,3158.5,3158.4,2.4038]
[1720896021042,0.33127839,3158.5,3158.4,2.9538]
[1720896021251,0.33127839,3158.5,3158.4,3.7638]
[1720896024375,0.33127839,3158.5,3158.4,2.9538]
[1720896024560,0.33127839,3158.5,3157.9,2.4038]
[1720896024762,0.33127839,3158.5,3157.9,4.54000472]
[1720896025743,2.65190261,3158.5,3157.9,4.54000472]
[1720896025976,2.65190261,3158.5,3157.9,2.4038]
[1720896026553,2.32062422,3158.4,3157.9,2.4038]
[1720896026765,2.32062422,3158.3,3157.8,6.67824718]
[1720896026944,0.33127839,3158.5,3157.8,6.67824718]
[1720896027145,2.32080165,3158.3,3157.8,6.67824718]
[1720896028184,2.32080165,3158.3,3157.9,0.55]
[1720896030250,0.33127839,3158.5,3157.9,0.55]
[1720896030453,2.32102539,3158.3,3157.9,0.55]
[1720896030848,2.32103496,3158.3,3157.9,0.55]
[1720896031886,2.32103496,3158.3,3157.8,6.67824718]
[1720896032066,2.5862663,3158.3,3157.8,6.67824718]
[1720896032265,2.32103496,3158.2,3157.8,6.67824718]
[1720896032479,2.32103496,3158.2,3157.6,2.4038]
[1720896033046,2.3210034,3158.2,3157.6,2.4038]
[1720896033387,2.3210034,3158.2,3157.5,2.4038]
[1720896033552,0.33127839,3158.5,3157.6,0.55]
[1720896033905,2.32110999,3158.2,3157.6,0.55]
[1720896034552,0.33130776,3158.1,3157.6,0.55]
[1720896036986,0.33130776,3158.1,3157.5,0.55]
[1720896046921,2.65023529,3158.1,3157.6,2.3194]
[1720896047126,2.65023529,3158.1,3157.7,0.55]
[1720896047320,2.65016392,3158.1,3157.7,0.55]
[1720896049516,2.6497862,3158.1,3157.7,0.55]
[1720896050524,2.64980521,3158.1,3157.7,0.55]
[1720896053741,2.64980521,3158.1,3157.7,0.83694]
[1720896053742,2.6495754,3158.1,3157.7,0.83694]
[1720896053923,0.33130776,3158.1,3157.7,0.83694]
[1720896067248,0.33130776,3158.1,3157.7,0.55]
[1720896067570,2.65033167,3158.1,3157.7,0.55]
[1720896067708,0.33130776,3158.1,3157.7,0.55]
[1720896069129,2.65129683,3158.1,3157.7,0.55]
[1720896069629,2.65200446,3158.1,3157.7,0.55]
[1720896072234,2.3206967,3158.0,3157.7,0.55]
[1720896072947,0.33130776,3158.1,3157.7,0.55]
[1720896073132,2.38,3157.9,3157.4,6.67824718]
[1720896073336,0.47024961,3157.8,3157.4,6.67824718]
[1720896073562,2.32249612,3157.8,3157.4,6.67824718]
[1720896073933,0.3312869,3157.7,3157.4,6.67824718]
[1720896076396,0.3312869,3157.7,3157.5,0.55]
[1720896078339,0.3312869,3157.7,3157.2,0.55]
[1720896079972,2.65472089,3157.7,3157.2,0.55]
[1720896080966,2.65472089,3157.7,3157.3,0.81]
[1720896081269,2.65472089,3157.7,3157.4,0.55]
[1720896082772,2.65459889,3157.7,3157.4,0.55]
[1720896083377,2.65459889,3157.7,3157.4,0.5]
[1720896083577,0.3312869,3157.7,3157.4,0.5]
[1720896084474,0.3312869,3157.7,3157.5,0.81]
[1720896085190,0.3312869,3157.7,3157.4,0.5]
[1720896085589,0.3312869,3157.7,3157.4,2.894]
[1720896085762,0.3312869,3157.7,3157.5,0.3704]
[1720896085959,0.3312869,3157.7,3157.6,0.55]
[1720896089091,0.3312869,3157.7,3157.5,0.55]
[1720896089395,0.3312869,3157.7,3157.2,3.204]
[1720896089595,0.3312869,3157.7,3157.3,0.55]
[1720896089892,0.3312869,3157.7,3157.3,0.9804]
[1720896091497,0.3312869,3157.7,3157.3,0.55]
[1720896092291,0.3312869,3157.7,3157.1,0.55]
[1720896092487,0.3312869,3157.7,3157.2,0.81]
[1720896092694,0.3312869,3157.7,3157.3,0.55]
[1720896096502,2.65399292,3157.7,3157.1,1.36]
[1720896096679,0.3312869,3157.7,3157.1,1.36]
[1720896096884,2.65399292,3157.7,3157.1,1.36]
[1720896097484,0.3312869,3157.7,3157.1,1.36]
[1720896098706,0.3312869,3157.7,3157.1,2.17533226]
[1720896100078,0.3312869,3157.7,3157.1,1.36]
[1720896100283,2.65391646,3157.7,3157.1,1.36]
[1720896100786,2.65391646,3157.7,3157.1,0.55]
[1720896101181,2.32262956,3157.6,3157.1,0.55]
[1720896101387,2.4732,3157.5,3157.1,0.55]
[1720896102210,2.4732,3157.5,3157.0,0.55]
[1720896103894,4.79536941,3157.5,3157.0,0.55]
[1720896104093,5.38903504,3157.5,3157.0,0.55]
[1720896104310,3.06686563,3157.5,3157.0,0.55]
[1720896104510,5.38903504,3157.5,3157.0,0.55]
[1720896105892,5.3885766,3157.5,3157.0,0.55]
[1720896106295,3.06686563,3157.5,3157.0,0.55]
[1720896106533,2.4732,3157.5,3157.0,0.55]
[1720896106699,3.2832,3157.5,3157.0,0.55]
[1720896106901,5.60483757,3157.3,3157.0,0.55]
[1720896107499,2.65293517,3157.2,3157.0,0.55]
[1720896107694,2.65293517,3157.2,3156.9,0.1150754]
[1720896107927,0.92491112,3157.2,3156.9,0.1150754]
[1720896109034,0.3312976,3157.2,3157.0,0.55]
[1720896112629,0.3312976,3157.2,3157.0,3.8208]
[1720896114419,0.3312976,3157.2,3157.1,2.2953]
[1720896114646,0.3312976,3157.2,3157.1,5.06252]
[1720896131384,0.3312976,3157.2,3157.1,7.34307149]
[1720896131684,0.00625442,3157.2,3157.1,12.81988618]
[1720896132054,0.00625442,3157.2,3157.1,13.13748618]
[1720896132650,0.00625442,3157.2,3157.1,11.63748618]
[1720896133678,0.00625442,3157.2,3157.1,13.13748618]
[1720896138787,0.00625442,3157.2,3157.1,15.35470618]
[1720896139174,0.00625442,3157.2,3157.1,15.29137469]
[1720896143004,2.4423,3158.5,3157.7,2.21675]
[1720896143160,2.4423,3158.5,3158.2,0.81]
[1720896143505,0.33128676,3158.4,3158.3,0.55]
[1720896148798,2.67358676,3158.4,3158.3,0.55]
[1720896149203,2.67358676,3158.4,3158.1,0.55]
[1720896169223,2.67358676,3158.4,3157.9,0.55]
[1720896172836,4.99390514,3158.4,3157.9,0.55]
[1720896173461,2.67358676,3158.4,3157.9,0.55]
[1720896173633,2.32172103,3158.3,3157.9,0.55]
[1720896173835,4.99530779,3158.4,3157.9,0.55]
[1720896176025,2.32172103,3158.3,3157.9,0.55]
[1720896176250,2.32172103,3158.3,3157.6,1.36]
[1720896176438,2.32172103,3158.2,3157.6,1.36]
[1720896176961,2.67358676,3158.4,3157.6,1.36]
[1720896177148,2.32316692,3158.1,3157.6,1.36]
[1720896177548,2.32383301,3158.1,3157.6,1.36]
[1720896177750,0.3315763,3158.0,3157.7,0.80382472]
[1720896177927,0.3315763,3158.0,3157.8,0.55]
[1720896180146,0.3315763,3158.0,3157.7,0.55]
[1720896186567,0.3315763,3158.0,3157.8,3.1764]
[1720896186883,0.3315763,3158.0,3157.9,0.55]
[1720896187041,0.3315763,3158.0,3157.9,1.199319]
[1720896204499,0.3315763,3158.0,3157.9,0.55]
[1720896223835,0.3315763,3158.0,3157.9,2.90802363]
[1720896224002,0.3315763,3158.0,3157.9,7.27802]
[1720896226449,2.32316912,3159.2,3158.4,2.2947]
[1720896226614,2.32316912,3159.2,3158.6,0.81]
[1720896226795,2.78325603,3159.2,3158.6,0.81]
[1720896226995,0.33155402,3159.1,3158.7,0.55]
[1720896231299,0.33155402,3159.1,3158.8,3.1047]
[1720896231531,0.33155402,3159.1,3158.9,0.55]
[1720896235121,0.33155402,3159.1,3159.0,0.81]
[1720896235329,0.33155402,3159.1,3159.0,1.72547]
[1720896239807,0.33155402,3159.1,3159.0,4.14737]
[1720896240448,0.33155402,3159.1,3159.0,1.72547]
[1720896242273,0.33155402,3159.1,3159.0,0.91547]
[1720896242458,0.33155402,3159.1,3158.5,0.81]
[1720896243039,2.435,3159.0,3158.5,0.81]
[1720896243455,0.33155402,3159.1,3158.5,0.81]
[1720896244044,0.33155402,3159.1,3158.7,0.81]
[1720896244254,0.33155402,3159.1,3158.8,0.55]
[1720896244566,1.14155402,3159.1,3158.8,0.55]
[1720896244855,2.435,3159.0,3158.3,0.81]
[1720896246089,2.435,3159.0,3158.5,0.81]
[1720896246256,2.435,3159.0,3158.6,0.55]
[1720896246855,2.435,3159.0,3158.4,0.81]
[1720896247096,2.435,3159.0,3158.5,0.55]
[1720896268209,4.75238178,3159.0,3158.5,0.55]
[1720896269382,4.75325256,3159.0,3158.5,0.55]
[1720896269582,2.435,3159.0,3158.5,0.55]
[1720896269783,4.75324518,3159.0,3158.5,0.55]
[1720896270282,2.435,3159.0,3158.5,0.55]
[1720896270506,4.7532913,3159.0,3158.5,0.55]
[1720896272217,5.26177583,3159.0,3158.5,0.55]
[1720896273312,4.7532913,3159.0,3158.5,0.55]
[1720896273679,2.435,3159.0,3158.5,0.55]
[1720896273897,4.75308323,3159.0,3158.5,0.55]
[1720896277606,2.435,3159.0,3158.5,0.55]
[1720896277811,4.75299191,3159.0,3158.5,0.55]
[1720896278684,2.435,3159.0,3158.5,0.55]
[1720896278914,4.75312069,3159.0,3158.5,0.55]
[1720896279904,2.435,3159.0,3158.5,0.55]
[1720896280107,2.31799036,3159.0,3158.6,0.81]
[1720896280298,2.31799036,3159.0,3158.5,0.55]
[1720896280299,0.33155402,3159.1,3158.8,0.81]
[1720896280503,0.33155402,3159.1,3158.9,0.55]
[1720896283929,0.33155402,3159.1,3158.9,2.9492]
[1720896284093,0.33155402,3159.1,3158.9,0.55]
[1720896284294,0.33155402,3159.1,3158.9,0.92592]
[1720896284909,2.65047434,3159.1,3158.9,0.92592]
[1720896285104,2.65047434,3159.1,3158.9,0.55]
[1720896287496,0.33155402,3159.1,3159.0,2.3992]
[1720896287835,0.33155402,3159.1,3159.0,3.7592]
[1720896291807,0.33155402,3159.1,3159.0,0.55]
[1720896292016,0.33155402,3159.1,3158.9,1.36]
[1720896297937,0.33155402,3159.1,3158.9,0.55]
[1720896302110,0.33155402,3159.1,3159.0,2.371]
[1720896302310,0.33155402,3159.1,3159.0,4.1041]
[1720896304444,0.33155402,3159.1,3159.0,6.31999]
[1720896306921,2.31693568,3160.1,3159.2,2.371]
[1720896307122,2.31693568,3160.2,3159.9,0.81]
[1720896307318,2.78400925,3160.2,3159.9,0.81]
[1720896307557,0.33148729,3160.0,3159.9,0.81]
[1720896307742,0.33148729,3160.0,3159.9,1.36]
[1720896312060,0.33148729,3160.0,3159.9,0.55]
[1720896312263,0.33148729,3160.0,3159.8,0.55]
[1720896316566,2.4829,3159.9,3159.8,0.55]
[1720896317071,2.4829,3159.9,3159.6,0.55]
[1720896317435,2.76433873,3159.9,3159.3,6.67824718]
[1720896317940,2.4829,3159.8,3159.3,6.67824718]
[1720896318135,4.79592084,3159.8,3159.3,6.67824718]
[1720896318328,2.4829,3159.8,3159.3,6.67824718]
[1720896318535,3.02378469,3159.8,3159.3,6.67824718]
[1720896318937,3.02378469,3159.8,3159.4,0.55]
[1720896319276,2.4829,3159.8,3159.4,0.55]
[1720896320264,5.12782374,3160.0,3159.4,0.55]
[1720896320431,2.64492374,3160.0,3159.4,0.55]
[1720896320846,0.33148729,3160.0,3159.5,0.81]
[1720896321057,0.33148729,3160.0,3159.6,0.55]
[1720896321262,2.64492374,3160.0,3159.6,0.55]
[1720896322979,0.33148729,3160.0,3159.6,0.55]
[1720896324151,2.64536158,3160.0,3159.6,0.55]
[1720896326471,2.31387429,3159.9,3159.6,0.55]
[1720896326665,2.64536158,3160.0,3159.6,0.55]
[1720896327173,0.33148729,3160.0,3159.6,0.55]
[1720896327383,2.31486689,3159.9,3159.6,0.55]
[1720896327584,0.33148729,3160.0,3159.6,0.55]
[1720896327871,2.31493653,3159.9,3159.6,0.55]
[1720896328642,2.26493653,3159.9,3159.6,0.55]
[1720896329248,2.4829,3159.8,3159.6,0.55]
[1720896329583,2.4829,3159.8,3159.0,2.3736]
[1720896329760,2.4829,3159.8,3159.1,0.81]
[1720896329955,2.4829,3159.8,3159.2,0.55]
[1720896331990,2.4829,3159.8,3159.3,0.81]
[1720896332283,2.4829,3159.8,3159.4,0.55]
[1720896333669,4.79908699,3159.8,3159.4,0.55]
[1720896333870,2.4829,3159.8,3159.4,0.55]
[1720896334068,4.79906744,3159.8,3159.4,0.55]
[1720896334267,2.31616744,3159.7,3159.4,0.55]
[1720896334474,4.79906744,3159.8,3159.4,0.55]
[1720896334969,0.33148417,3159.7,3159.4,0.55]
[1720896335892,2.64765161,3159.7,3159.4,0.55]
[1720896337426,2.64769818,3159.7,3159.4,0.55]
[1720896337764,0.33148417,3159.7,3159.4,0.55]
[1720896338003,2.64766094,3159.7,3159.4,0.55]
[1720896338384,2.31617677,3159.6,3159.4,0.55]
[1720896338684,2.64766094,3159.7,3159.4,0.55]
[1720896338882,2.64766094,3159.7,3159.1,0.81]
[1720896338883,2.31617677,3159.6,3159.2,0.55]
[1720896339085,2.31629282,3159.6,3159.2,0.55]
[1720896339664,2.31629282,3159.6,3159.3,0.81]
[1720896339864,2.31629282,3159.6,3159.4,0.55]
[1720896340073,2.31629282,3159.5,3159.4,0.55]
[1720896340305,2.4143,3159.5,3159.4,0.55]
[1720896340476,2.4143,3159.5,3158.9,7.48824718]
[1720896340477,2.4143,3159.5,3158.9,0.81]
[1720896340675,2.31576475,3159.4,3158.9,0.81]
[1720896340872,2.3155902,3159.3,3159.0,0.55]
[1720896341704,2.3155902,3159.3,3158.6,2.4191]
[1720896341705,2.3155902,3159.2,3158.7,0.55]
[1720896343517,2.3155902,3159.3,3158.7,0.55]
[1720896343684,2.3155902,3159.2,3158.7,0.55]
[1720896343876,2.3155902,3159.2,3158.7,1.59573472]
[1720896344073,2.4143,3159.5,3158.7,1.59573472]
[1720896344274,2.31449151,3159.3,3158.8,0.81]
[1720896344517,2.31449151,3159.3,3158.9,0.55]
[1720896347511,2.4143,3159.5,3158.9,0.55]
[1720896347708,2.31416041,3159.3,3158.9,0.55]
[1720896348207,2.31414949,3159.3,3158.9,0.55]
[1720896350215,2.4143,3159.5,3158.9,0.55]
[1720896350216,0.33150117,3159.2,3158.9,0.55]
[1720896354705,0.33150117,3159.2,3159.0,3.3087]
[1720896354906,0.33150117,3159.2,3159.1,0.55]
[1720896362045,0.33150117,3159.2,3159.1,3.43457]
[1720896380168,0.33150117,3159.2,3159.1,0.93587]
[1720896380340,0.33150117,3159.2,3159.1,0.55]
[1720896383073,0.33150117,3159.2,3158.9,0.55]
[1720896383776,0.33150117,3159.2,3158.5,6.67824718]
[1720896383982,2.64634638,3159.2,3158.8,0.81]
[1720896385267,2.64634638,3159.2,3158.9,0.55]
[1720896385466,0.33150117,3159.2,3158.9,0.55]
[1720896387998,2.64613139,3159.2,3158.9,0.55]
[1720896390116,2.64627982,3159.2,3158.9,0.55]
[1720896390718,0.33150117,3159.2,3158.9,0.55]
[1720896390923,2.64630268,3159.2,3158.9,0.55]
[1720896394331,2.64642632,3159.2,3158.9,0.55]
[1720896397559,0.33150117,3159.2,3158.9,0.55]
[1720896397825,2.64654467,3159.2,3158.9,0.55]
[1720896398129,2.64651536,3159.2,3158.9,0.55]
[1720896398424,2.6465563,3159.2,3158.9,0.55]
[1720896400496,2.64645371,3159.2,3158.9,0.55]
[1720896400698,0.33150117,3159.2,3158.9,0.55]
[1720896401230,2.64652093,3159.2,3158.9,0.55]
[1720896402530,0.33150117,3159.2,3158.9,0.55]
[1720896402823,2.64652093,3159.2,3158.9,0.55]
[1720896404635,2.64638693,3159.2,3158.9,0.55]
[1720896407940,0.33150117,3159.2,3158.9,0.55]
[1720896411834,0.33150117,3159.2,3159.1,0.81]
[1720896412000,0.33150117,3159.2,3159.1,1.74061]
[1720896416925,0.33150117,3159.2,3159.1,3.634]
[1720896422546,2.31643273,3160.1,3159.2,2.274]
[1720896422863,2.31643273,3160.1,3159.7,0.81]
[1720896423036,0.33154253,3160.0,3159.8,0.55]
[1720896430763,0.33154253,3160.0,3159.9,3.084]
[1720896430956,0.33154253,3160.0,3159.9,4.00372958]
[1720896459754,0.00290358,3160.4,3159.9,4.00372958]
[1720896459958,0.00290358,3160.4,3160.3,0.81]
[1720896460493,0.00290358,3160.4,3160.3,1.36]
[1720896473426,0.00290358,3160.4,3160.3,3.7743]
[1720896473731,0.00290358,3160.4,3160.3,4.15173]
[1720896474940,0.00290358,3160.4,3160.3,0.92743]
[1720896475138,0.00290358,3160.4,3160.3,1.36]
[1720896484733,0.00290358,3160.4,3159.7,6.67824718]
[1720896484734,2.29890358,3160.4,3159.7,6.67824718]
[1720896484921,2.31686507,3160.3,3159.9,0.81]
[1720896486465,2.31686507,3160.3,3160.0,0.55]
[1720896487330,2.29890358,3160.4,3160.0,0.55]
[1720896487531,2.31627984,3160.3,3160.0,0.55]
[1720896488630,2.31627984,3160.3,3160.1,0.81]
[1720896488961,2.31627984,3160.3,3160.2,0.55]
[1720896489590,2.31918342,3160.4,3160.2,0.55]
[1720896489960,2.31627984,3160.3,3160.2,0.55]
[1720896490906,2.31620328,3160.3,3160.2,0.55]
[1720896493304,0.00290358,3160.4,3160.0,0.55]
[1720896493605,2.31582145,3160.2,3160.0,0.55]
[1720896494309,2.31580172,3160.2,3160.0,0.55]
[1720896494507,0.00290358,3160.4,3160.0,0.55]
[1720896494711,2.31566633,3160.2,3160.0,0.55]
[1720896496692,2.31566633,3160.3,3160.0,0.55]
[1720896497099,0.00290358,3160.4,3160.0,0.55]
[1720896497614,2.31538674,3160.3,3160.0,0.55]
[1720896499882,2.31829032,3160.4,3160.0,0.55]
[1720896500176,2.31538674,3160.3,3160.0,0.55]
[1720896500785,2.31829032,3160.4,3160.0,0.55]
[1720896500985,2.31792315,3160.4,3160.0,0.55]
[1720896501699,2.31501957,3160.3,3160.0,0.55]
[1720896501901,2.31792315,3160.4,3160.0,0.55]
[1720896502797,2.31501957,3160.3,3160.0,0.55]
[1720896503253,2.31792315,3160.4,3160.0,0.55]
[1720896504394,2.31923644,3160.4,3160.2,2.468]
[1720896504931,2.31925854,3160.4,3160.2,2.468]
[1720896505944,0.00290358,3160.4,3160.2,2.468]
[1720896507323,2.31925854,3160.4,3160.2,2.468]
[1720896507523,0.00290358,3160.4,3160.2,2.468]
[1720896508320,2.31932523,3160.4,3160.2,2.468]
[1720896508702,0.00290358,3160.4,3160.2,2.468]
[1720896509316,2.31932523,3160.4,3160.2,2.468]
[1720896509620,0.00290358,3160.4,3160.2,2.468]
[1720896510424,2.31932523,3160.4,3160.2,2.468]
[1720896511251,2.31941836,3160.4,3160.2,2.468]
[1720896512019,0.00290358,3160.4,3160.2,2.468]
[1720896514532,2.3194945,3160.4,3160.2,2.468]
[1720896514961,0.00290358,3160.4,3160.2,2.468]
[1720896515158,2.3195395,3160.4,3160.2,2.468]
[1720896515860,0.00290358,3160.4,3160.2,2.468]
[1720896516227,2.3195395,3160.4,3160.2,2.468]
[1720896517453,2.31973425,3160.4,3160.2,2.468]
[1720896517964,2.31975132,3160.4,3160.2,2.468]
[1720896519558,0.00290358,3160.4,3160.2,2.468]
[1720896519759,2.31980732,3160.4,3160.2,2.468]
[1720896521366,0.00290358,3160.4,3160.2,2.468]
[1720896521673,2.32065819,3160.4,3160.2,2.468]
[1720896524736,0.00290358,3160.4,3160.2,2.468]
[1720896524947,2.32126748,3160.4,3160.2,2.468]
[1720896525362,2.32136048,3160.4,3160.2,2.468]
[1720896527841,0.00290358,3160.4,3160.2,2.468]
[1720896528254,2.32197532,3160.4,3160.2,2.468]
[1720896531567,0.00290358,3160.4,3160.2,2.468]
[1720896531769,2.32240992,3160.4,3160.2,2.468]
[1720896534876,0.00290358,3160.4,3160.2,2.468]
[1720896535079,2.32217076,3160.4,3160.2,2.468]
[1720896535428,2.32221307,3160.4,3160.2,2.468]
[1720896537994,2.32209846,3160.4,3160.2,2.468]
[1720896538362,0.00290358,3160.4,3160.2,2.468]
[1720896538563,2.461,3160.2,3159.4,2.3509]
[1720896538806,2.31893608,3159.8,3159.3,6.67824718]
[1720896538963,2.31893608,3159.7,3159.3,6.67824718]
[1720896539309,2.31893608,3159.7,3159.4,0.81]
[1720896539514,2.31893608,3159.8,3159.4,0.81]
[1720896539795,2.31893608,3159.7,3159.4,0.81]
[1720896540163,2.31893608,3159.8,3159.4,0.81]
[1720896540557,2.31893608,3159.7,3159.4,0.81]
[1720896540760,2.31893608,3159.8,3159.4,0.81]
[1720896540961,0.33145439,3159.9,3159.4,0.81]
[1720896541163,2.31796997,3159.8,3159.4,0.81]
[1720896541558,2.31796997,3159.7,3159.4,0.81]
[1720896542170,2.31796997,3159.7,3159.2,3.1609]
[1720896542385,2.31796997,3159.6,3159.3,0.55]
[1720896542577,2.31796997,3159.7,3159.3,0.55]
[1720896542771,2.79586697,3159.6,3159.1,0.55]
[1720896542976,2.31796997,3159.6,3159.1,0.55]
[1720896543397,2.31796997,3159.5,3159.1,0.55]
[1720896543605,5.19910203,3159.8,3159.1,0.55]
[1720896543606,2.31796997,3159.6,3159.1,0.55]
[1720896544198,2.461,3159.8,3159.1,0.55]
[1720896544199,2.31507277,3159.5,3159.1,0.55]
[1720896544585,2.461,3159.8,3159.1,0.55]
[1720896544895,2.31414157,3159.6,3159.1,0.55]
[1720896545487,0.27924544,3159.7,3159.1,0.55]
[1720896545488,2.59338701,3159.7,3159.1,0.55]
[1720896545665,2.31414157,3159.7,3159.1,0.55]
[1720896546068,2.31414157,3159.8,3159.1,0.55]
[1720896546385,2.31414157,3159.7,3159.1,0.55]
[1720896546579,2.31414157,3159.8,3159.2,2.3509]
[1720896546796,2.31414157,3159.8,3159.3,0.55]
[1720896547282,2.31285075,3159.8,3159.3,0.55]
[1720896547514,2.82338126,3159.8,3159.3,0.55]
[1720896549521,0.51053051,3159.8,3159.3,0.55]
[1720896550219,2.64430514,3159.9,3159.3,0.55]
[1720896550824,2.64251493,3159.9,3159.3,0.55]
[1720896554223,0.33145439,3159.9,3159.3,0.55]
[1720896555325,2.64197121,3159.9,3159.3,0.55]
[1720896555496,0.33145439,3159.9,3159.3,0.55]
[1720896559302,0.33145439,3159.9,3159.4,2.3413]
[1720896566706,2.2998,3159.8,3159.3,0.55]
[1720896566906,2.2998,3159.8,3159.2,0.55]
[1720896570122,3.45191643,3159.9,3159.2,0.55]
[1720896571111,3.4522123,3159.9,3159.2,0.55]
[1720896573034,3.4522123,3159.9,3159.3,2.3413]
[1720896573613,2.6422123,3159.9,3159.3,2.3413]
[1720896574228,3.4522123,3159.9,3159.3,2.3413]
[1720896574435,0.34522123,3159.8,3159.3,2.3413]
[1720896574742,3.45317,3159.9,3159.3,2.3413]
[1720896575625,2.64317,3159.9,3159.3,2.3413]
[1720896577446,2.31171561,3159.8,3159.3,2.3413]
[1720896577846,2.31293573,3159.8,3159.3,2.3413]
[1720896578213,0.33145439,3159.9,3159.3,2.3413]
[1720896578413,2.31294618,3159.8,3159.3,2.3413]
[1720896579722,0.33145439,3159.9,3159.3,2.3413]
[1720896579921,2.31400481,3159.8,3159.3,2.3413]
[1720896580467,2.31400481,3159.7,3159.3,2.3413]
[1720896581024,2.31457452,3159.7,3159.3,2.3413]
[1720896581247,0.33145439,3159.9,3159.3,2.3413]
[1720896581447,2.31458466,3159.7,3159.3,2.3413]
[1720896582432,2.31458466,3159.6,3159.3,2.3413]
[1720896583012,0.3313788,3159.5,3159.3,2.3413]
[1720896584557,2.31458466,3159.4,3159.3,2.3413]
[1720896584757,0.3313788,3159.5,3159.3,2.8913]
[1720896584955,2.31867085,3159.4,3159.3,2.3413]
[1720896585255,2.31867085,3159.4,3159.3,2.8913]
[1720896588636,0.3313788,3159.5,3159.3,2.8913]
[1720896588829,2.31883729,3159.4,3159.3,2.8913]
[1720896589028,2.31883729,3159.4,3159.3,2.88839642]
[1720896591261,0.3313788,3159.5,3159.3,2.88839642]
[1720896591467,2.31906973,3159.4,3159.3,2.88839642]
[1720896591631,2.31928227,3159.4,3159.3,2.88839642]
[1720896593367,2.31928227,3159.4,3159.3,3.25823606]
[1720896593569,2.65066107,3159.5,3159.4,2.3737]
[1720896594460,0.3313788,3159.5,3159.4,2.3737]
[1720896597831,0.3313788,3159.5,3159.4,2.98700133]
[1720896598033,0.3313788,3159.5,3159.4,3.3953841]
[1720896611377,0.3313788,3159.5,3159.4,4.2053841]
[1720896624175,0.3313788,3159.5,3159.4,1.8316841]
[1720896624378,0.3313788,3159.5,3159.4,1.36]
[1720896636608,0.3313788,3159.5,3159.4,0.55]
[1720896636822,0.3313788,3159.5,3159.3,0.55]
[1720896653431,0.3313788,3159.5,3159.4,0.55]
[1720896653635,0.3313788,3159.5,3159.1,1.36]
[1720896655652,3.1602164,3159.5,3159.1,1.36]
[1720896655852,2.3941,3159.4,3159.1,0.55]
[1720896656060,2.3941,3159.4,3158.9,0.81]
[1720896656061,4.7128452,3159.4,3159.0,0.55]
[1720896656223,4.71302849,3159.4,3159.0,0.55]
[1720896657459,2.89854073,3159.4,3159.0,0.55]
[1720896658154,2.3941,3159.4,3159.0,0.55]
[1720896658324,2.3941,3159.4,3158.9,0.81]
[1720896658518,4.71302849,3159.4,3159.0,0.55]
[1720896658743,2.3941,3159.4,3159.0,0.55]
[1720896660254,2.31803293,3159.3,3158.8,0.55]
[1720896660457,2.8223841,3159.3,3158.8,0.55]
[1720896660758,2.8223841,3159.3,3158.7,6.67824718]
[1720896660973,4.71213293,3159.2,3158.7,6.67824718]
[1720896661332,2.31803293,3159.1,3158.7,6.67824718]
[1720896661623,5.04352424,3159.2,3158.7,6.67824718]
[1720896662058,2.72549131,3159.2,3158.7,7.48824718]
[1720896662564,2.72549131,3159.2,3158.8,0.55]
[1720896665371,0.33139131,3159.2,3158.8,0.55]
[1720896669379,0.82311517,3159.2,3158.8,0.55]
[1720896670075,0.82311517,3159.2,3158.4,6.67824718]
[1720896670076,2.2699,3159.1,3158.4,6.67824718]
[1720896670282,4.5858473,3159.1,3158.5,0.55]
[1720896670493,2.93784355,3159.0,3158.5,0.55]
[1720896672150,0.62189625,3159.0,3158.5,0.55]
[1720896673355,0.62189625,3159.0,3158.6,0.81]
[1720896674856,2.3121,3158.9,3158.4,6.67824718]
[1720896675062,0.29339963,3158.8,3158.4,6.67824718]
[1720896675366,0.29339963,3158.8,3158.6,0.81]
[1720896676964,0.3313771,3158.8,3158.6,0.81]
[1720896680865,0.3313771,3158.8,3158.2,2.4099]
[1720896681071,0.3313771,3158.8,3158.6,0.81]
[1720896682887,0.3313771,3158.8,3158.7,2.4099]
[1720896683087,0.3313771,3158.8,3158.7,2.9599]
[1720896683292,0.3313771,3158.8,3158.7,3.33689]
[1720896684087,0.3313771,3158.8,3158.7,3.7699]
[1720896685389,0.3313771,3158.8,3158.7,1.36]
[1720896686273,0.3313771,3158.8,3158.7,3.7699]
[1720896687575,0.3313771,3158.8,3158.7,5.986]
[1720896687785,4.62567341,3159.8,3158.8,2.4099]
[1720896687984,2.3121,3159.8,3159.5,0.81]
[1720896688501,0.33136786,3159.7,3159.5,0.81]
[1720896690890,0.33136786,3159.7,3159.6,0.55]
[1720896691299,0.33136786,3159.7,3159.6,2.9599]
[1720896697523,0.33136786,3159.7,3159.6,3.33689]
[1720896699603,2.31291349,3160.7,3159.6,3.33689]